fUSD/lending_fUSD_20260423
["ID","MTS","AMOUNT","RATE_DAILY","PERIOD"]
[421046964,1776951504945,-1000.0,0.00016986,2]
[421046965,1776951504955,-1000.0,0.00016986,2]
[421046966,1776951504964,-1000.0,0.00016986,2]
[421046967,1776951504974,-1000.0,0.00016986,2]
[421046968,1776951504983,-1000.0,0.00016986,2]
[421046969,1776951504993,-1000.0,0.00016986,2]
[421046970,1776951505002,-1000.0,0.00016986,2]
[421046971,1776951505012,-1000.0,0.00016986,2]
[421046972,1776951505023,-563.76860919,0.00016986,2]
[421046973,1776951505032,-1000.0,0.00016986,2]
[421046974,1776951505041,-1000.0,0.00016986,2]
[421046975,1776951505051,-1000.0,0.00016986,2]
[421046976,1776951505061,-1114.63787923,0.00016986,2]
[421046977,1776951505071,-194.62837166,0.00016986,2]
[421046978,1776951505081,-1000.0,0.00016986,2]
[421046979,1776951505091,-1000.0,0.00016986,2]
[421046980,1776951505100,-1067.52045065,0.00016986,2]
[421046981,1776951505110,-1000.0,0.00016986,2]
[421046982,1776951505119,-573.01253496,0.00016986,2]
[421046983,1776951505129,-1000.0,0.00016986,2]
[421046984,1776951505138,-501.25135748,0.00016986,2]
[421046985,1776951505148,-150.0,0.00016991,7]
[421046986,1776951505157,-100000.0,0.00017,2]
[421046987,1776951505167,-150.0,0.00017,2]
[421046988,1776951505176,-150.0,0.00017,2]
[421046989,1776951505185,-150.0,0.00017,2]
[421046990,1776951505194,-245.07061174,0.00017,2]
[421046991,1776951505203,-1380280.70579882,0.00017,2]
[421046992,1776951505212,-350.0,0.00017,2]
[421046993,1776951505222,-162.24421151,0.00017,7]
[421046994,1776951505231,-638.11,0.00017026,2]
[421046995,1776951505240,-392.67,0.00017033,2]
[421046996,1776951505249,-570.37,0.00017055,2]
[421046997,1776951505258,-638.3,0.00017057,2]
[421046998,1776951505267,-638.3,0.00017057,2]
[421046999,1776951505277,-477.94,0.00017057,2]
[421047000,1776951505286,-4000.0,0.00017058,2]
[421047001,1776951505295,-2534.65,0.000171,2]
[421047002,1776951505304,-2704.72,0.000171,2]
[421047003,1776951505313,-151.0,0.00017105,2]
[421047004,1776951505322,-500.0,0.0001716,2]
[421047005,1776951505331,-500.0,0.0001716,2]
[421047006,1776951505342,-500.0,0.0001716,2]
[421047007,1776951505351,-500.0,0.0001716,2]
[421047008,1776951505361,-500.0,0.0001716,2]
[421047009,1776951505370,-500.0,0.0001716,2]
[421047010,1776951505381,-276.0,0.0001716,2]
[421047011,1776951505390,-500.0,0.00017191,2]
[421047012,1776951505400,-425.0,0.00017191,2]
[421047013,1776951505410,-289.72925117,0.00017192,2]
[421047014,1776951505420,-151.0,0.00017226,5]
[421047015,1776951505430,-750.0,0.0001728,2]
[421047016,1776951505439,-750.0,0.0001728,2]
[421047017,1776951505448,-750.0,0.0001728,2]
[421047018,1776951505458,-750.0,0.0001728,2]
[421047019,1776951505467,-520.0,0.0001728,2]
[421047020,1776951505476,-167.76078399,0.0001729,2]
[421047021,1776951505486,-150.0,0.00017342,2]
[421047022,1776951505495,-150.0,0.00017342,2]
[421047023,1776951505504,-150.0,0.00017342,2]
[421047024,1776951505513,-150.0,0.00017342,2]
[421047025,1776951505523,-150.0,0.00017342,2]
[421047026,1776951505532,-206.0,0.00017342,2]
[421047027,1776951505541,-1000.0,0.00017377,3]
[421047028,1776951505551,-2534.65,0.000174,2]
[421047029,1776951505560,-2704.72,0.000174,2]
[421047030,1776951505569,-277147.08,0.000174,2]
[421047031,1776951505579,-1102.7,0.00017424,2]
[421047032,1776951505589,-5000.0,0.000175,15]
[421047033,1776951505598,-350.0,0.0001752,2]
[421047034,1776951505608,-350.0,0.0001752,2]
[421047035,1776951505618,-1500.0,0.00017534,2]
[421047036,1776951505627,-1500.0,0.00017534,2]
[421047037,1776951505637,-1500.0,0.00017534,2]
[421047038,1776951505646,-1369.65329148,0.00017534,2]
[421047039,1776951505656,-1500.0,0.00017534,2]
[421047040,1776951505666,-1500.0,0.00017534,2]
[421047041,1776951505675,-1500.0,0.00017534,2]
[421047042,1776951505685,-1500.0,0.00017534,2]
[421047043,1776951505695,-1500.0,0.00017534,2]
[421047044,1776951505704,-796.30523984,0.00017534,2]
[421047045,1776951505714,-1500.0,0.00017534,2]
[421047046,1776951505724,-1500.0,0.00017534,2]
[421047047,1776951505734,-923.46093673,0.00017534,2]
[421047048,1776951505743,-1500.0,0.00017534,2]
[421047049,1776951505753,-1500.0,0.00017534,2]
[421047050,1776951505763,-1500.0,0.00017534,2]
[421047051,1776951505772,-1500.0,0.00017534,2]
[421047052,1776951505782,-1500.0,0.00017534,2]
[421047053,1776951505793,-408.1578853,0.00017534,2]
[421047054,1776951505802,-397.74129477,0.00017534,2]
[421047055,1776951505811,-1500.0,0.00017534,2]
[421047056,1776951505821,-171.705417,0.00017665,2]
[421047057,1776951505832,-789.86856475,0.000177,2]
[421047058,1776951505841,-403.0,0.000177,5]
[421047059,1776951505851,-2534.65,0.000177,2]
[421047060,1776951505860,-2704.72,0.000177,2]
[421047061,1776951505870,-2727.65,0.000177,2]
[421047062,1776951505879,-505.0,0.00017763,5]
[421047063,1776951505888,-6032.47,0.000178,2]
[421047064,1776951505899,-277.72,0.00017808,2]
[421047065,1776951505908,-462.87,0.00017808,2]
[421047066,1776951505918,-800.0,0.00017808,12]
[421047067,1776951505931,-450.0,0.00017808,2]
[421047068,1776951505941,-150.0,0.00017834,2]
[421047069,1776951505951,-645.07,0.00017842,2]
[421047070,1776951505960,-183.99,0.00017851,2]
[421047071,1776951505970,-1011.4274245,0.0001786,2]
[421047072,1776951505979,-151.0,0.00017869,2]
[421047073,1776951505989,-289.72925117,0.00017885,7]
[421047074,1776951505998,-1234.07979412,0.0001789,2]
[421047075,1776951506007,-1081.39373751,0.0001789,2]
[421047076,1776951506016,-151.19585737,0.00017926,2]
[421047077,1776951506025,-7480.0,0.00018,30]
[421047078,1776951506035,-5343.6446,0.00018,30]
[421047079,1776951506045,-500.0,0.00018,5]
[421047080,1776951506054,-500.0,0.00018,5]
[421047081,1776951506064,-595.0,0.00018,5]
[421047082,1776951506073,-151.0,0.00018,2]
[421047083,1776951506082,-700.0,0.00018,2]
[421047084,1776951506091,-700.0,0.00018,2]
[421047085,1776951506101,-1541.00334875,0.00018,2]
[421047086,1776951506110,-110413.23854466,0.00018,2]
[421047087,1776951506120,-1202.39057459,0.00018,2]
[421047088,1776951506129,-2534.65,0.00018,2]
[421047089,1776951506139,-2704.72,0.00018,2]
[421047090,1776951506148,-1067.5,0.00018082,2]
[421047091,1776951506158,-2000.0,0.00018082,2]
[421047092,1776951506168,-2000.0,0.00018082,2]
[421047093,1776951506178,-2000.0,0.00018082,2]
[421047094,1776951506187,-2000.0,0.00018082,2]
[421047095,1776951506197,-2000.0,0.00018082,2]
[421047096,1776951506207,-2000.0,0.00018082,2]
[421047097,1776951506218,-2000.0,0.00018082,2]
[421047098,1776951506227,-2000.0,0.00018082,2]
[421047099,1776951506238,-2000.0,0.00018082,2]
[421047100,1776951506248,-2000.0,0.00018082,2]
[421047101,1776951506258,-2000.0,0.00018082,2]
[421047102,1776951506268,-2000.0,0.00018082,2]
[421047103,1776951506278,-2000.0,0.00018082,2]
[421047104,1776951506287,-1195.88403061,0.00018082,2]
[421047105,1776951506296,-2000.0,0.00018082,2]
[421047106,1776951506306,-2000.0,0.00018082,2]
[421047107,1776951506315,-1794.61592771,0.000181,2]
[421047108,1776951506325,-225.54,0.000182,6]
[421047109,1776951506446,-470.53,0.000182,6]
[421047110,1776951506459,-210.45,0.000182,6]
[421047111,1776951506469,-203.81316556,0.00018226,5]
[421047112,1776951506479,-3401.15778642,0.00018295,37]
[421047113,1776951506489,-185.16,0.00018323,2]
[421047114,1776951506499,-150.0,0.0001834,2]
[421047115,1776951506510,-89280.17,0.00018356,2]
[421047116,1776951506520,-4210.0,0.00018463,7]
[421047117,1776951506531,-289.72925117,0.00018577,7]
[421047118,1776951506542,-505.0,0.00018615,6]
[421047119,1776951506554,-1700.0,0.0001863,2]
[421047120,1776951506565,-2500.0,0.0001863,2]
[421047121,1776951506576,-1029.06364266,0.0001863,2]
[421047122,1776951506587,-706.23790138,0.0001863,2]
[421047123,1776951506597,-2500.0,0.0001863,2]
[421047124,1776951506608,-2500.0,0.0001863,2]
[421047125,1776951506618,-659.77121359,0.0001863,2]
[421047126,1776951506628,-2500.0,0.0001863,2]
[421047127,1776951506639,-2500.0,0.0001863,2]
[421047128,1776951506648,-2603.83446451,0.0001863,2]
[421047129,1776951506658,-2500.0,0.0001863,2]
[421047130,1776951506668,-360.173192,0.0001863,2]
[421047131,1776951506677,-2500.0,0.0001863,2]
[421047132,1776951506687,-2500.0,0.0001863,2]
[421047133,1776951506696,-2500.0,0.0001863,2]
[421047134,1776951506707,-570.37,0.0001867,2]
[421047135,1776951506718,-570.44,0.00018673,2]
[421047136,1776951506728,-151.0,0.00018692,2]
[421047137,1776951506738,-151.0,0.00018692,2]
[421047138,1776951506748,-151.0,0.00018692,2]
[421047139,1776951506757,-277147.08,0.000187,2]
[421047140,1776951506767,-2727.65,0.000187,2]
[421047141,1776951506777,-500.0,0.000187,2]
[421047142,1776951506786,-500.0,0.000187,2]
[421047143,1776951506796,-500.0,0.000187,2]
[421047144,1776951506806,-500.0,0.000187,2]
[421047145,1776951506816,-500.0,0.000187,2]
[421047146,1776951506826,-500.0,0.000187,2]
[421047147,1776951506836,-500.0,0.000187,2]
[421047148,1776951506846,-500.0,0.000187,2]
[421047149,1776951506855,-500.0,0.000187,2]
[421047150,1776951506864,-500.0,0.000187,2]
[421047151,1776951506874,-500.0,0.000187,2]
[421047152,1776951506884,-500.0,0.000187,2]
[421047153,1776951506894,-500.0,0.000187,2]
[421047154,1776951506903,-500.0,0.000187,2]
[421047155,1776951506913,-500.0,0.000187,2]
[421047156,1776951506923,-500.0,0.000187,2]
[421047157,1776951506932,-500.0,0.000187,2]
[421047158,1776951506942,-570.37,0.00018701,2]
[421047159,1776951506952,-392.67,0.00018787,2]
[421047160,1776951506961,-1032.31,0.00018904,2]
[421047161,1776951506971,-493.0,0.00018931,2]
[421047162,1776951506980,-5214.16374771,0.00019,2]
[421047163,1776951506990,-2534.65,0.00019,2]
[421047164,1776951506999,-7824.0,0.00019,2]
[421047165,1776951507009,-2959.24,0.00019,2]
[421047166,1776951507019,-400.0,0.00019,2]
[421047167,1776951507028,-162.24421151,0.00019,7]
[421047168,1776951507038,-292.5,0.00019178,2]
[421047169,1776951507048,-200.0,0.00019178,2]
[421047170,1776951507058,-200.0,0.00019178,2]
[421047171,1776951507068,-200.0,0.00019178,2]
[421047172,1776951507078,-200.0,0.00019178,2]
[421047173,1776951507088,-320.0,0.00019178,2]
[421047174,1776951507097,-400.0,0.00019178,15]
[421047175,1776951507107,-800.0,0.00019178,22]
[421047176,1776951507116,-2500.0,0.00019178,2]
[421047177,1776951507126,-3000.0,0.00019178,2]
[421047178,1776951507136,-3000.0,0.00019178,2]
[421047179,1776951507147,-3000.0,0.00019178,2]
[421047180,1776951507156,-2120.01366802,0.00019178,2]
[421047181,1776951507166,-3000.0,0.00019178,2]
[421047182,1776951507176,-3000.0,0.00019178,2]
[421047183,1776951507186,-3000.0,0.00019178,2]
[421047184,1776951507195,-3000.0,0.00019178,2]
[421047185,1776951507204,-289.72925117,0.00019269,7]
[421047186,1776951507214,-350.0,0.00019272,2]
[421047187,1776951507224,-150.0,0.0001934,2]
[421047188,1776951507234,-505.0,0.00019468,7]
[421047189,1776951507243,-151.0,0.00019513,2]
[421047190,1776951507253,-151.0,0.00019518,2]
[421047191,1776951507263,-151.0,0.00019518,2]
[421047192,1776951507273,-2959.24,0.000196,2]
[421047193,1776951507283,-1317.39,0.0001964,2]
[421047194,1776951507292,-234.26,0.00019658,2]
[421047195,1776951507302,-171.705417,0.00019699,2]
[421047196,1776951507312,-2959.24,0.000197,2]
[421047197,1776951507322,-2727.65,0.000197,2]
[421047198,1776951507332,-3500.0,0.00019726,2]
[421047199,1776951507343,-3500.0,0.00019726,2]
[421047200,1776951507352,-3500.0,0.00019726,2]
[421047201,1776951507361,-847.60039159,0.00019726,2]
[421047202,1776951507371,-3500.0,0.00019726,2]
[421047203,1776951507380,-2220.4808007,0.00019726,2]
[421047204,1776951507390,-3500.0,0.00019726,2]
[421047205,1776951507399,-3608.04762325,0.00019832,44]
[421047206,1776951507408,-16836.06,0.00019836,2]
[421047207,1776951507417,-1000.0,0.00019838,5]
[421047208,1776951507427,-4975.86252735,0.000199,3]
[421047209,1776951507436,-368240.94408952,0.0001995,15]
[421047210,1776951507446,-289.72925117,0.00019962,14]
[421047211,1776951507455,-100000.0,0.0002,2]
[421047212,1776951507464,-2961.15,0.0002,30]
[421047213,1776951507474,-600.0,0.0002,2]
[421047214,1776951507483,-500.0,0.0002,2]
[421047215,1776951507492,-927.0,0.0002,2]
[421047216,1776951507502,-151.0,0.0002,2]
[421047217,1776951507511,-151.0,0.0002,2]
[421047218,1776951507520,-151.0,0.0002,2]
[421047219,1776951507529,-100000.0,0.0002,2]
[421047220,1776951507539,-8645.0,0.0002,2]
[421047221,1776951507548,-150.04448265,0.0002,2]
[421047222,1776951507557,-11959.3503355,0.0002,2]
[421047223,1776951507567,-907.0,0.0002,2]
[421047224,1776951507577,-600.0,0.0002,2]
[421047225,1776951507587,-4376.0,0.0002,2]
[421047226,1776951507596,-200.0,0.0002,2]
[421047227,1776951507605,-9277.0,0.0002,2]
[421047228,1776951507615,-7053.951987,0.0002,2]
[421047229,1776951507624,-1547.8373761,0.0002,2]
[421047230,1776951507634,-178.10463849,0.0002,2]
[421047231,1776951507643,-25825.63434893,0.0002,2]
[421047232,1776951507652,-2464.68,0.0002,2]
[421047233,1776951507662,-3950.0,0.0002,2]
[421047234,1776951507671,-26674.52340954,0.0002,2]
[421047235,1776951507681,-1306.71837398,0.0002,2]
[421047236,1776951507690,-200.0,0.0002,2]
[421047237,1776951507699,-1054.8478164,0.0002,2]
[421047238,1776951507708,-52126.48572485,0.0002,2]
[421047239,1776951507718,-13040.76595992,0.0002,2]
[421047240,1776951507727,-152.0,0.0002,2]
[421047241,1776951507737,-1484.2106933,0.0002,5]
[421047242,1776951507746,-2704.72,0.0002,2]
[421047243,1776951507756,-931.0,0.0002,2]
[421047244,1776951507765,-876.0,0.0002,2]
[421047245,1776951507775,-212.03,0.0002,2]
[421047246,1776951507784,-849.0,0.0002,2]
[421047247,1776951507794,-6140.0,0.0002,2]
[421047248,1776951507804,-1000.0,0.0002,10]
[421047249,1776951507813,-856.13781115,0.0002,2]
[421047250,1776951507822,-277147.08,0.0002,2]
[421047251,1776951507832,-5000.0,0.0002,15]
[421047252,1776951507842,-4949.96965363,0.0002,2]
[421047253,1776951507851,-2000.0,0.0002,2]
[421047254,1776951507861,-10000.0,0.0002,2]
[421047255,1776951507870,-2000.7203,0.0002,2]
[421047256,1776951507880,-10003.6013,0.0002,2]
[421047257,1776951507889,-1233.5372,0.0002,2]
[421047258,1776951507899,-1041.3409,0.0002,2]
[421047259,1776951507908,-409.078721,0.0002,2]
[421047260,1776951507917,-2000.0,0.0002,2]
[421047261,1776951507926,-500.0,0.0002,2]
[421047262,1776951507936,-500.0,0.0002,2]
[421047263,1776951507945,-500.0,0.0002,2]
[421047264,1776951507954,-500.0,0.0002,2]
[421047265,1776951507964,-500.0,0.0002,2]
[421047266,1776951507973,-500.0,0.0002,2]
[421047267,1776951507982,-500.0,0.0002,2]
[421047268,1776951507992,-825.0,0.0002,30]
[421047269,1776951508001,-870.233308,0.0002,2]
[421047270,1776951508011,-2000.0,0.0002001,2]
[421047271,1776951508020,-2000.0,0.0002002,2]
[421047272,1776951508030,-2815.28022,0.0002003,2]
[421047273,1776951508039,-997.12,0.00020054,2]
[421047274,1776951508049,-4000.0,0.00020274,2]
[421047275,1776951508058,-4000.0,0.00020274,2]
[421047276,1776951508068,-3281.22726851,0.00020274,2]
[421047277,1776951508079,-4000.0,0.00020274,2]
[421047278,1776951508088,-4000.0,0.00020274,2]
[421047279,1776951508097,-505.0,0.00020321,7]
[421047280,1776951508106,-151.0,0.00020335,2]
[421047281,1776951508116,-150.0,0.0002034,2]
[421047282,1776951508125,-151.25,0.0002034,2]
[421047283,1776951508134,-151.0,0.00020346,2]
[421047284,1776951508143,-6192.03,0.00020384,2]
[421047285,1776951508153,-570.37,0.00020428,2]
[421047286,1776951508162,-183.38,0.00020432,2]
[421047287,1776951508171,-2959.24,0.000205,2]
[421047288,1776951508180,-800.0,0.00020548,32]
[421047289,1776951508190,-21734.49,0.00020548,2]
[421047290,1776951508200,-291.35913279,0.00020548,10]
[421047291,1776951508209,-457.14988079,0.00020548,10]
[421047292,1776951508218,-289.72925117,0.00020654,14]
[421047293,1776951508228,-22878.49712763,0.000207,2]
[421047294,1776951508237,-2727.65,0.000207,2]
[421047295,1776951508247,-4325.24366087,0.00020822,2]
[421047296,1776951508256,-1703.0227974,0.00020822,2]
[421047297,1776951508265,-4500.0,0.00020822,2]
[421047298,1776951508275,-4500.0,0.00020822,2]
[421047299,1776951508285,-155.0,0.000209,2]
[421047300,1776951508294,-309.13057687,0.00021,30]
[421047301,1776951508304,-3400.89605346,0.00021,7]
[421047302,1776951508314,-20000.0,0.00021,2]
[421047303,1776951508323,-1204.49162523,0.00021,2]
[421047304,1776951508334,-198.79405189,0.00021,2]
[421047305,1776951508343,-199.39,0.00021,2]
[421047306,1776951508352,-450.0,0.00021,2]
[421047307,1776951508362,-638.26,0.00021136,2]
[421047308,1776951508371,-152.65,0.00021162,2]
[421047309,1776951508381,-505.0,0.00021173,8]
[421047310,1776951508390,-277147.08,0.000212,2]
[421047311,1776951508400,-225.54,0.000212,15]
[421047312,1776951508409,-470.53,0.000212,15]
[421047313,1776951508419,-210.45,0.000212,15]
[421047314,1776951508428,-255.44971031,0.00021233,10]
[421047315,1776951508437,-384.14345248,0.00021233,10]
[421047316,1776951508446,-476.26,0.00021289,2]
[421047317,1776951508455,-150.0,0.0002134,2]
[421047318,1776951508465,-289.72925117,0.00021347,14]
[421047319,1776951508474,-961.93,0.00021369,2]
[421047320,1776951508483,-6442.16,0.0002137,2]
[421047321,1776951508492,-5000.0,0.0002137,2]
[421047322,1776951508502,-5000.0,0.0002137,2]
[421047323,1776951508511,-3809.78344219,0.0002137,50]
[421047324,1776951508520,-58113.16700963,0.000215,2]
[421047325,1776951508530,-224.30128194,0.000215,2]
[421047326,1776951508539,-2959.24,0.000215,2]
[421047327,1776951508930,-171.705417,0.00021733,2]
[421047328,1776951508944,-155.0,0.000219,2]
[421047329,1776951508954,-3064.39,0.00021918,2]
[421047330,1776951508964,-5000.0,0.00021918,2]
[421047331,1776951508974,-1001.13,0.00021918,2]
[421047332,1776951508984,-800.0,0.00021918,2]
[421047333,1776951508994,-800.0,0.00021918,2]
[421047334,1776951509003,-800.0,0.00021918,2]
[421047335,1776951509013,-184.0,0.00021918,2]
[421047336,1776951509023,-442.0,0.00021918,2]
[421047337,1776951509033,-800.0,0.00021918,2]
[421047338,1776951509043,-800.0,0.00021918,2]
[421047339,1776951509052,-500.0,0.00021918,2]
[421047340,1776951509061,-500.0,0.00021918,2]
[421047341,1776951509071,-800.0,0.00021918,42]
[421047342,1776951509081,-172.0,0.00021918,2]
[421047343,1776951509091,-166.0,0.00021918,2]
[421047344,1776951509100,-166.0,0.00021918,2]
[421047345,1776951509110,-166.0,0.00021918,2]
[421047346,1776951509119,-5500.0,0.00021918,2]
[421047347,1776951509129,-2015.77510092,0.00021918,2]
[421047348,1776951509138,-166.0,0.00021918,2]
[421047349,1776951509149,-166.0,0.00021918,2]
[421047350,1776951509158,-454.75543312,0.00021918,10]
[421047351,1776951509168,-319.31213788,0.00021918,10]
[421047352,1776951509177,-493.0,0.00021931,2]
[421047353,1776951509186,-151.0,0.00021979,2]
[421047354,1776951509196,-2017.84442994,0.00022,2]
[421047355,1776951509206,-598.77,0.00022,5]
[421047356,1776951509215,-151.0,0.00022,2]
[421047357,1776951509224,-164.92,0.00022,2]
[421047358,1776951509234,-160.0,0.00022,2]
[421047359,1776951509243,-11256.17613054,0.00022,4]
[421047360,1776951509253,-2534.65,0.00022,7]
[421047361,1776951509263,-2727.65,0.00022,7]
[421047362,1776951509272,-505.0,0.00022026,9]
[421047363,1776951509282,-289.72925117,0.00022039,30]
[421047364,1776951509291,-638.38,0.00022079,2]
[421047365,1776951509301,-524.44046561,0.000221,7]
[421047366,1776951509310,-242.71696125,0.0002211,2]
[421047367,1776951509321,-825.0,0.00022141,30]
[421047368,1776951509331,-151.0,0.000223,30]
[421047369,1776951509341,-150.0,0.0002234,2]
[421047370,1776951509351,-156.11,0.00022439,75]
[421047371,1776951509360,-191.32,0.00022439,43]
[421047372,1776951509370,-2897.27801751,0.00022466,2]
[421047373,1776951509380,-1000.0,0.00022484,5]
[421047374,1776951509389,-10191.8229729,0.00022489,2]
[421047375,1776951509399,-35868.71253246,0.000225,2]
[421047376,1776951509407,-3642.29060054,0.000226,2]
[421047377,1776951509416,-234.26,0.00022603,2]
[421047378,1776951509426,-500.0,0.00022699,2]
[421047379,1776951509435,-277147.08,0.000227,7]
[421047380,1776951509445,-528.68025969,0.0002271,2]
[421047381,1776951509455,-289.72925117,0.00022731,30]
[421047382,1776951509464,-191.32,0.00022776,56]
[421047383,1776951509474,-151.0,0.00022801,2]
[421047384,1776951509483,-151.0,0.00022804,2]
[421047385,1776951509493,-505.0,0.00022878,10]
[421047386,1776951509503,-155.0,0.000229,2]
[421047387,1776951509512,-558.57534174,0.00022999,2]
[421047388,1776951509522,-257803.89914436,0.00023,2]
[421047389,1776951509531,-53183.28162544,0.00023,2]
[421047390,1776951509541,-4737.85203261,0.00023,2]
[421047391,1776951509551,-2704.72,0.00023,7]
[421047392,1776951509561,-3360.29201935,0.00023,2]
[421047393,1776951509570,-500.0,0.00023,2]
[421047394,1776951509581,-162.24421151,0.00023,7]
[421047395,1776951509591,-1055.12979203,0.00023,2]
[421047396,1776951509601,-406.22,0.00023288,52]
[421047397,1776951509611,-2000.0,0.000233,30]
[421047398,1776951509621,-150.0,0.0002334,2]
[421047399,1776951509630,-161.34,0.000234,14]
[421047400,1776951509640,-161.34,0.000234,14]
[421047401,1776951509649,-161.34,0.000234,14]
[421047402,1776951509658,-161.32,0.000234,14]
[421047403,1776951509668,-289.72925117,0.00023424,60]
[421047404,1776951509677,-4210.0,0.00023463,7]
[421047405,1776951509687,-400.24814399,0.000235,2]
[421047406,1776951509696,-151.32,0.00023623,2]
[421047407,1776951509706,-505.0,0.00023731,10]
[421047408,1776951509716,-171.705417,0.00023766,2]
[421047409,1776951509727,-333.81,0.00023785,69]
[421047410,1776951509737,-5000.0,0.00023832,15]
[421047411,1776951509746,-150.0,0.00023834,2]
[421047412,1776951509756,-167.0,0.000239,2]
[421047413,1776951509765,-277147.08,0.000239,7]
[421047414,1776951509775,-161.34,0.00023948,14]
[421047415,1776951509784,-161.34,0.00023948,14]
[421047416,1776951509793,-161.34,0.00023948,14]
[421047417,1776951509803,-161.32,0.00023948,14]
[421047418,1776951509812,-500.0,0.00024,7]
[421047419,1776951509822,-1033.13214383,0.00024,2]
[421047420,1776951509831,-3600.0,0.00024,2]
[421047421,1776951509841,-1249.10488274,0.00024,2]
[421047422,1776951509851,-1049.0,0.00024,2]
[421047423,1776951509861,-289.72925117,0.00024116,60]
[421047424,1776951509870,-3738.56125209,0.0002421,2]
[421047425,1776951509880,-825.0,0.00024282,60]
[421047426,1776951509890,-150.0,0.0002434,2]
[421047427,1776951509901,-151.0,0.00024444,2]
[421047428,1776951509910,-4174.662571,0.00024445,62]
[421047429,1776951509919,-161.34,0.00024496,14]
[421047430,1776951509929,-161.34,0.00024496,14]
[421047431,1776951509939,-161.34,0.00024496,14]
[421047432,1776951509948,-161.32,0.00024496,14]
[421047433,1776951509958,-363.97929157,0.000245,30]
[421047434,1776951509968,-183.38,0.00024502,2]
[421047435,1776951509977,-570.37,0.00024542,2]
[421047436,1776951509987,-79704.54371536,0.00024555,2]
[421047437,1776951509997,-1000.0,0.00024567,6]
[421047438,1776951510007,-505.0,0.00024583,11]
[421047439,1776951510016,-151.02136687,0.0002463,2]
[421047440,1776951510026,-193.29489153,0.0002463,2]
[421047441,1776951510035,-168.8,0.0002463,2]
[421047442,1776951510045,-182.35,0.0002463,2]
[421047443,1776951510055,-230.4,0.0002463,2]
[421047444,1776951510064,-228.15,0.0002463,2]
[421047445,1776951510074,-170.95,0.0002463,2]
[421047446,1776951510084,-217.25,0.0002463,2]
[421047447,1776951510095,-218.9,0.0002463,2]
[421047448,1776951510104,-215.45,0.0002463,2]
[421047449,1776951510115,-230.95,0.0002463,2]
[421047450,1776951510124,-230.9,0.0002463,2]
[421047451,1776951510134,-152.35,0.0002463,2]
[421047452,1776951510143,-155.25,0.0002463,2]
[421047453,1776951510153,-194.45,0.0002463,2]
[421047454,1776951510162,-198.4,0.0002463,2]
[421047455,1776951510171,-176.75,0.0002463,2]
[421047456,1776951510181,-167.9,0.0002463,2]
[421047457,1776951510191,-174.4,0.0002463,2]
[421047458,1776951510200,-1000.0,0.00024658,2]
[421047459,1776951510210,-1256.39,0.00024658,2]
[421047460,1776951510220,-344.153933,0.00024658,2]
[421047461,1776951510231,-344.153933,0.00024658,2]
[421047462,1776951510240,-344.153933,0.00024658,2]
[421047463,1776951510250,-344.153933,0.00024658,2]